fUST/lending_fUST_20260509
["ID","MTS","AMOUNT","RATE_DAILY","PERIOD"]
[421873504,1778259032000,-300.0,9.718e-05,2]
[421873505,1778259032000,-300.0,9.718e-05,2]
[421873516,1778259032000,-300.0,9.718e-05,2]
[421873519,1778259032000,-247.0,9.718e-05,2]
[421873522,1778259032000,-1200.0,9.718e-05,2]
[421873541,1778259032000,-11300.91705957,0.000105,2]
[421873529,1778259032000,-536.099,0.00010445,2]
[421873532,1778259032000,-151.0,0.00010497,2]
[421873537,1778259032000,-13018.80266992,0.000105,2]
[421873500,1778259032000,-5000.0,9.526e-05,2]
[421873535,1778259032000,-5435.28725732,0.000105,2]
[421873525,1778259032000,-572.63769077,0.000104,2]
[421873539,1778259032000,-13363.21814331,0.000105,2]
[421873574,1778259042000,-1503.37647772,9.431e-05,2]
[421873580,1778259043000,-386.50188147,9.431e-05,2]
[421873591,1778259047000,-709.58521082,9.431e-05,2]
[421873592,1778259076000,-414.48375,9.337e-05,2]
[421873596,1778259172000,500.0,0.00013698,120]
[421873601,1778259405000,500.0,0.00013698,120]
[421873676,1778260238000,-237.67563,8.16e-05,2]
[421873677,1778260238000,-5000.0,8.276e-05,2]
[421873675,1778260238000,-200.0,8.16e-05,2]
[421873678,1778260238000,-1200.0,8.359e-05,2]
[421873685,1778260238000,-179.24543093,9.33e-05,2]
[421873683,1778260238000,-151.0,9.211e-05,2]
[421873681,1778260238000,-313.85584546,8.658e-05,2]
[421873680,1778260238000,-300.0,8.657e-05,2]
[421873682,1778260238000,-179.24543093,9.05e-05,2]
[421873684,1778260238000,-151.0,9.304e-05,2]
[421873686,1778260238000,-420.0,9.523e-05,2]
[421873690,1778260238000,-20135.16142469,0.00010297,2]
[421873688,1778260238000,-31633.77505029,0.0001,2]
[421873687,1778260238000,-179.24543092,9.625e-05,2]
[421873689,1778260238000,-16920.81005039,0.00010297,2]
[421873679,1778260238000,-5000.0,8.36e-05,2]
[421873791,1778260243000,-559.19499045,0.00010194,2]
[421873792,1778260243000,-557.18407237,0.00010194,2]
[421873797,1778260246000,-113.21677523,0.00010194,2]
[421873799,1778260246000,-5779.75469985,0.00010299,2]
[421873801,1778260246000,-5070.47952164,0.00010299,2]
[421873800,1778260246000,-475220.31979734,0.00010299,2]
[421873802,1778260246000,-304.0,0.00010299,2]
[421873798,1778260246000,-1107.02852492,0.00010297,2]
[421873810,1778260377000,500.0,0.00013698,120]
[421873809,1778260377000,1000.0,0.00013698,120]
[421873808,1778260377000,1000.0,0.00013698,120]
[421873811,1778260387000,178.47686882,0.00015632,120]
[421873815,1778260608000,1000.0,0.00013698,120]
[421873817,1778260609000,1000.0,0.00013698,120]
[421873819,1778260609000,1000.0,0.00013698,120]
[421873818,1778260609000,1000.0,0.00013698,120]
[421873816,1778260609000,1000.0,0.00013698,120]
[421873823,1778260845000,92029.08,0.00019178,120]
[421873957,1778261435000,-1466.30417787,8.502e-05,2]
[421873956,1778261435000,-338.712,8.502e-05,2]
[421873955,1778261435000,-323.91001145,8.417e-05,2]
[421873958,1778261435000,-497.83140389,8.502e-05,2]
[421874056,1778261438000,-470.87563429,9.943e-05,2]
[421874061,1778261438000,-500.0,9.943e-05,2]
[421874075,1778261438000,-553.88312183,9.943e-05,2]
[421874068,1778261438000,-500.0,9.943e-05,2]
[421874071,1778261438000,-500.0,9.943e-05,2]
[421874069,1778261438000,-500.0,9.943e-05,2]
[421874066,1778261438000,-500.0,9.943e-05,2]
[421874076,1778261438000,-500.0,9.943e-05,2]
[421874062,1778261438000,-500.0,9.943e-05,2]
[421874065,1778261438000,-500.0,9.943e-05,2]
[421874064,1778261438000,-324.75176561,9.943e-05,2]
[421874073,1778261438000,-500.0,9.943e-05,2]
[421874072,1778261438000,-500.0,9.943e-05,2]
[421874070,1778261438000,-500.0,9.943e-05,2]
[421874063,1778261438000,-500.0,9.943e-05,2]
[421874059,1778261438000,-500.0,9.943e-05,2]
[421874052,1778261438000,-10000.0,9.123e-05,2]
[421874057,1778261438000,-500.0,9.943e-05,2]
[421874036,1778261438000,-2697.15241824,8.502e-05,2]
[421874038,1778261438000,-327.08889752,8.632e-05,2]
[421874040,1778261438000,-200.0,9.033e-05,2]
[421874045,1778261438000,-300.0,9.122e-05,2]
[421874042,1778261438000,-246.72,9.033e-05,7]
[421874044,1778261438000,-31025.1060747,9.122e-05,2]
[421874067,1778261438000,-500.0,9.943e-05,2]
[421874050,1778261438000,-300.0,9.122e-05,2]
[421874055,1778261438000,-7617.62041702,9.844e-05,2]
[421874049,1778261438000,-300.0,9.122e-05,2]
[421874048,1778261438000,-300.0,9.122e-05,2]
[421874053,1778261438000,-151.0,9.275e-05,2]
[421874051,1778261438000,-1200.0,9.122e-05,2]
[421874054,1778261438000,-492.133,9.81e-05,2]
[421874046,1778261438000,-300.0,9.122e-05,2]
[421874078,1778261438000,-500.0,9.943e-05,2]
[421874094,1778261438000,-500.0,9.943e-05,2]
[421874081,1778261438000,-500.0,9.943e-05,2]
[421874100,1778261438000,-382.36718564,9.943e-05,2]
[421874101,1778261438000,-1274.70128403,9.943e-05,2]
[421874096,1778261438000,-500.0,9.943e-05,2]
[421874105,1778261438000,-1274.70128403,9.943e-05,2]
[421874106,1778261438000,-1274.70128403,9.943e-05,2]
[421874103,1778261438000,-1274.70128403,9.943e-05,2]
[421874099,1778261438000,-500.0,9.943e-05,2]
[421874104,1778261438000,-1274.70128403,9.943e-05,2]
[421874107,1778261438000,-1274.70128403,9.943e-05,2]
[421874109,1778261438000,-1274.70128403,9.943e-05,2]
[421874108,1778261438000,-1274.70128403,9.943e-05,2]
[421874111,1778261438000,-1274.70128403,9.943e-05,2]
[421874112,1778261438000,-1274.70128403,9.943e-05,2]
[421874074,1778261438000,-500.0,9.943e-05,2]
[421874102,1778261438000,-1274.70128403,9.943e-05,2]
[421874097,1778261438000,-500.0,9.943e-05,2]
[421874110,1778261438000,-1274.70128403,9.943e-05,2]
[421874098,1778261438000,-500.0,9.943e-05,2]
[421874077,1778261438000,-500.0,9.943e-05,2]
[421874095,1778261438000,-500.0,9.943e-05,2]
[421874082,1778261438000,-500.0,9.943e-05,2]
[421874080,1778261438000,-500.0,9.943e-05,2]
[421874084,1778261438000,-500.0,9.943e-05,2]
[421874083,1778261438000,-500.0,9.943e-05,2]
[421874085,1778261438000,-500.0,9.943e-05,2]
[421874079,1778261438000,-500.0,9.943e-05,2]
[421874087,1778261438000,-500.0,9.943e-05,2]
[421874086,1778261438000,-199.71933562,9.943e-05,2]
[421874088,1778261438000,-500.0,9.943e-05,2]
[421874092,1778261438000,-500.0,9.943e-05,2]
[421874093,1778261438000,-500.0,9.943e-05,2]
[421874089,1778261438000,-500.0,9.943e-05,2]
[421874090,1778261438000,-500.0,9.943e-05,2]
[421874091,1778261438000,-500.0,9.943e-05,2]
[421874144,1778261439000,-199.22413827,0.0001,2]
[421874148,1778261439000,-152.0,0.00010216,2]
[421874149,1778261439000,-256.81899257,0.00010226,2]
[421874156,1778261439000,-160.0,0.00010684,2]
[421874145,1778261439000,-420.0,0.00010035,2]
[421874155,1778261439000,-151.5,0.00010684,2]
[421874154,1778261439000,-385.96489907,0.00010632,2]
[421874147,1778261439000,-152.0,0.00010213,2]
[421874153,1778261439000,-431.00534336,0.000105,2]
[421874136,1778261439000,-2536.55839551,0.0001,2]
[421874150,1778261439000,-2081.0145002,0.00010295,2]
[421874157,1778261439000,-7750.55697768,0.00010858,2]
[421874158,1778261439000,-155.0,0.00010957,2]
[421874146,1778261439000,-1680.0,0.00010035,2]
[421874162,1778261439000,-503.73027991,0.00010958,2]
[421874152,1778261439000,-972.1723614,0.00010295,2]
[421874159,1778261439000,-873.5344,0.00010958,2]
[421874170,1778261439000,-500.0,0.00010958,2]
[421874169,1778261439000,-500.0,0.00010958,2]
[421874161,1778261439000,-502.94007995,0.00010958,2]
[421874160,1778261439000,-694.5826,0.00010958,2]
[421874164,1778261439000,-500.0,0.00010958,2]
[421874165,1778261439000,-500.0,0.00010958,2]
[421874137,1778261439000,-3079.78218535,0.0001,2]
[421874151,1778261439000,-2567.5126633,0.00010295,2]
[421874135,1778261439000,-2825.23571501,0.0001,2]
[421874124,1778261439000,-1317.19132684,9.943e-05,2]
[421874134,1778261439000,-2808.17029039,0.0001,2]
[421874115,1778261439000,-1274.70128403,9.943e-05,2]
[421874113,1778261439000,-1274.70128403,9.943e-05,2]
[421874116,1778261439000,-1274.70128403,9.943e-05,2]
[421874114,1778261439000,-1274.70128403,9.943e-05,2]
[421874118,1778261439000,-1274.70128403,9.943e-05,2]
[421874117,1778261439000,-1274.70128403,9.943e-05,2]
[421874119,1778261439000,-1274.70128403,9.943e-05,2]
[421874120,1778261439000,-1274.70128403,9.943e-05,2]
[421874122,1778261439000,-1317.19132684,9.943e-05,2]
[421874123,1778261439000,-1317.19132684,9.943e-05,2]
[421874128,1778261439000,-1317.19132684,9.943e-05,2]
[421874127,1778261439000,-1317.19132684,9.943e-05,2]
[421874125,1778261439000,-1317.19132684,9.943e-05,2]
[421874126,1778261439000,-1317.19132684,9.943e-05,2]
[421874121,1778261439000,-500.0,9.943e-05,2]
[421874130,1778261439000,-1317.19132684,9.943e-05,2]
[421874131,1778261439000,-167728.08520215,9.944e-05,2]
[421874129,1778261439000,-1317.19132684,9.943e-05,2]
[421874132,1778261439000,-114817.17349414,9.944e-05,2]
[421874138,1778261439000,-153.83570575,0.0001,2]
[421874139,1778261439000,-160.09271175,0.0001,2]
[421874140,1778261439000,-161.10030561,0.0001,2]
[421874141,1778261439000,-166.52323756,0.0001,2]
[421874143,1778261439000,-202.92616576,0.0001,2]
[421874142,1778261439000,-193.39296244,0.0001,2]
[421874133,1778261439000,-1136.00081938,0.0001,2]
[421874167,1778261439000,-279.11293296,0.00010958,2]
[421874179,1778261439000,-500.0,0.00010958,2]
[421874166,1778261439000,-503.83030558,0.00010958,2]
[421874204,1778261439000,-503.50775794,0.00010958,2]
[421874199,1778261439000,-300.5168078,0.00010958,2]
[421874206,1778261439000,-502.66358346,0.00010958,2]
[421874207,1778261439000,-500.0,0.00010958,2]
[421874202,1778261439000,-503.41225319,0.00010958,2]
[421874200,1778261439000,-500.0,0.00010958,2]
[421874205,1778261439000,-502.78226107,0.00010958,2]
[421874201,1778261439000,-503.19241353,0.00010958,2]
[421874208,1778261439000,-633.6,0.00010958,2]
[421874209,1778261439000,-500.0,0.00010958,2]
[421874210,1778261439000,-503.38098012,0.00010958,2]
[421874211,1778261439000,-500.0,0.00010958,2]
[421874215,1778261439000,-502.96901007,0.00010958,2]
[421874221,1778261439000,-256.08405898,0.00010958,2]
[421874217,1778261439000,-460.46226689,0.00010958,2]
[421874219,1778261439000,-500.0,0.00010958,2]
[421874225,1778261439000,-500.0,0.00010958,2]
[421874223,1778261439000,-445.0,0.00010958,2]
[421874226,1778261439000,-500.0,0.00010958,2]
[421874227,1778261439000,-470.99120705,0.00010958,2]
[421874229,1778261439000,-502.59529205,0.00010958,2]
[421874228,1778261439000,-500.0,0.00010958,2]
[421874231,1778261439000,-502.48483801,0.00010958,2]
[421874232,1778261439000,-530.68,0.00010958,2]
[421874163,1778261439000,-503.12879764,0.00010958,2]
[421874203,1778261439000,-151.0,0.00010958,2]
[421874198,1778261439000,-605.78,0.00010958,2]
[421874213,1778261439000,-500.0,0.00010958,2]
[421874194,1778261439000,-570.6,0.00010958,2]
[421874168,1778261439000,-500.0,0.00010958,2]
[421874196,1778261439000,-502.45656469,0.00010958,2]
[421874172,1778261439000,-500.0,0.00010958,2]
[421874182,1778261439000,-500.0,0.00010958,2]
[421874183,1778261439000,-502.56348935,0.00010958,2]
[421874174,1778261439000,-503.77731097,0.00010958,2]
[421874171,1778261439000,-500.0,0.00010958,2]
[421874178,1778261439000,-500.0,0.00010958,2]
[421874180,1778261439000,-649.05,0.00010958,2]
[421874173,1778261439000,-244.65953868,0.00010958,2]
[421874176,1778261439000,-500.0,0.00010958,2]
[421874181,1778261439000,-500.0,0.00010958,2]
[421874175,1778261439000,-500.0,0.00010958,2]
[421874177,1778261439000,-501.9650422,0.00010958,2]
[421874185,1778261439000,-500.0,0.00010958,2]
[421874193,1778261439000,-500.0,0.00010958,2]
[421874192,1778261439000,-625.16,0.00010958,2]
[421874189,1778261439000,-565.71,0.00010958,2]
[421874197,1778261439000,-502.98040146,0.00010958,2]
[421874191,1778261439000,-531.72,0.00010958,2]
[421874195,1778261439000,-522.98,0.00010958,2]
[421874188,1778261439000,-625.6233895,0.00010958,2]
[421874187,1778261439000,-502.76665047,0.00010958,2]
[421874186,1778261439000,-502.59836681,0.00010958,2]
[421874184,1778261439000,-500.0,0.00010958,2]
[421874190,1778261439000,-500.0,0.00010958,2]
[421874307,1778261440000,-500.0,0.00010958,2]
[421874315,1778261440000,-502.08212756,0.00010958,2]
[421874317,1778261440000,-500.0,0.00010958,2]
[421874308,1778261440000,-500.0,0.00010958,2]
[421874319,1778261440000,-501.36473655,0.00010958,2]
[421874303,1778261440000,-500.0,0.00010958,2]
[421874313,1778261440000,-500.0,0.00010958,2]
[421874311,1778261440000,-500.0,0.00010958,2]
[421874299,1778261440000,-570.66,0.00010958,2]
[421874301,1778261440000,-500.0,0.00010958,2]
[421874321,1778261440000,-500.0,0.00010958,2]
[421874304,1778261440000,-500.0,0.00010958,2]
[421874325,1778261440000,-643.92,0.00010958,2]
[421874346,1778261440000,-500.0,0.00010958,2]
[421874329,1778261440000,-500.0,0.00010958,2]
[421874327,1778261440000,-500.0,0.00010958,2]
[421874331,1778261440000,-533.45,0.00010958,2]
[421874333,1778261440000,-502.89934216,0.00010958,2]
[421874339,1778261440000,-500.0,0.00010958,2]
[421874335,1778261440000,-502.63705185,0.00010958,2]
[421874341,1778261440000,-500.0,0.00010958,2]
[421874343,1778261440000,-503.14726966,0.00010958,2]
[421874337,1778261440000,-501.70067565,0.00010958,2]
[421874345,1778261440000,-501.36468221,0.00010958,2]
[421874347,1778261440000,-567.67,0.00010958,2]
[421874356,1778261440000,-503.4084045,0.00010958,2]
[421874297,1778261440000,-538.04,0.00010958,2]
[421874323,1778261440000,-500.0,0.00010958,2]
[421874295,1778261440000,-500.0,0.00010958,2]
[421874242,1778261440000,-500.0,0.00010958,2]
[421874290,1778261440000,-502.66558554,0.00010958,2]
[421874238,1778261440000,-500.0,0.00010958,2]
[421874236,1778261440000,-591.16,0.00010958,2]
[421874354,1778261440000,-500.0,0.00010958,2]
[421874244,1778261440000,-504.32851552,0.00010958,2]
[421874234,1778261440000,-500.0,0.00010958,2]
[421874246,1778261440000,-500.0,0.00010958,2]
[421874248,1778261440000,-500.0,0.00010958,2]
[421874250,1778261440000,-500.0,0.00010958,2]
[421874272,1778261440000,-500.0,0.00010958,2]
[421874255,1778261440000,-500.0,0.00010958,2]
[421874259,1778261440000,-502.72386813,0.00010958,2]
[421874268,1778261440000,-503.40892212,0.00010958,2]
[421874266,1778261440000,-173.47170212,0.00010958,2]
[421874257,1778261440000,-500.0,0.00010958,2]
[421874274,1778261440000,-203.69968307,0.00010958,2]
[421874252,1778261440000,-502.64567583,0.00010958,2]
[421874265,1778261440000,-502.93196582,0.00010958,2]
[421874261,1778261440000,-500.0,0.00010958,2]
[421874270,1778261440000,-500.0,0.00010958,2]
[421874263,1778261440000,-583.03,0.00010958,2]
[421874278,1778261440000,-500.0,0.00010958,2]
[421874284,1778261440000,-500.0,0.00010958,2]
[421874280,1778261440000,-500.0,0.00010958,2]
[421874282,1778261440000,-500.0,0.00010958,2]
[421874276,1778261440000,-500.0,0.00010958,2]
[421874286,1778261440000,-500.0,0.00010958,2]
[421874288,1778261440000,-500.0,0.00010958,2]
[421874293,1778261440000,-500.0,0.00010958,2]
[421874349,1778261440000,-500.0,0.00010958,2]
[421874240,1778261440000,-482.7843891,0.00010958,2]
[421874359,1778261440000,-595.47,0.00010958,2]
[421874383,1778261440000,-528.26,0.00010958,2]
[421874396,1778261440000,-621.53,0.00010958,2]
[421874394,1778261440000,-502.01686601,0.00010958,2]
[421874395,1778261440000,-557.16,0.00010958,2]
[421874400,1778261440000,-502.76788111,0.00010958,2]
[421874397,1778261440000,-503.4238024,0.00010958,2]
[421874399,1778261440000,-500.0,0.00010958,2]
[421874389,1778261440000,-500.0,0.00010958,2]
[421874393,1778261440000,-260.73619208,0.00010958,2]
[421874401,1778261440000,-500.0,0.00010958,2]
[421874391,1778261440000,-500.0,0.00010958,2]
[421874398,1778261440000,-500.0,0.00010958,2]
[421874390,1778261440000,-597.77,0.00010958,2]
[421874392,1778261440000,-502.54255922,0.00010958,2]
[421874405,1778261440000,-500.0,0.00010958,2]
[421874404,1778261440000,-502.66202273,0.00010958,2]
[421874402,1778261440000,-501.36772425,0.00010958,2]
[421874406,1778261440000,-500.0,0.00010958,2]
[421874403,1778261440000,-500.0,0.00010958,2]
[421874408,1778261440000,-500.0,0.00010958,2]
[421874407,1778261440000,-1156.24,0.00010958,2]
[421874409,1778261440000,-1042.7,0.00010958,2]
[421874411,1778261440000,-2849.43,0.00010958,2]
[421874413,1778261440000,-500.0,0.00010958,2]
[421874410,1778261440000,-500.0,0.00010958,2]
[421874414,1778261440000,-1162.47,0.00010958,2]
[421874415,1778261440000,-611.37,0.00010958,2]
[421874382,1778261440000,-502.13143756,0.00010958,2]
[421874384,1778261440000,-774.07,0.00010958,2]
[421874412,1778261440000,-500.0,0.00010958,2]
[421874378,1778261440000,-500.0,0.00010958,2]
[421874380,1778261440000,-502.34660742,0.00010958,2]
[421874357,1778261440000,-502.26928691,0.00010958,2]
[421874360,1778261440000,-500.0,0.00010958,2]
[421874361,1778261440000,-502.6979057,0.00010958,2]
[421874351,1778261440000,-504.2344134,0.00010958,2]
[421874352,1778261440000,-500.0,0.00010958,2]
[421874362,1778261440000,-503.05297443,0.00010958,2]
[421874353,1778261440000,-549.81090426,0.00010958,2]
[421874363,1778261440000,-500.0,0.00010958,2]
[421874365,1778261440000,-500.0,0.00010958,2]
[421874370,1778261440000,-500.91476207,0.00010958,2]
[421874375,1778261440000,-508.24,0.00010958,2]
[421874371,1778261440000,-500.0,0.00010958,2]
[421874372,1778261440000,-500.0,0.00010958,2]
[421874350,1778261440000,-500.0,0.00010958,2]
[421874366,1778261440000,-500.0,0.00010958,2]
[421874373,1778261440000,-516.95,0.00010958,2]
[421874379,1778261440000,-527.89,0.00010958,2]
[421874381,1778261440000,-502.15371937,0.00010958,2]
[421874387,1778261440000,-500.0,0.00010958,2]
[421874385,1778261440000,-502.61632704,0.00010958,2]
[421874386,1778261440000,-500.0,0.00010958,2]
[421874388,1778261440000,-502.21474954,0.00010958,2]
[421874367,1778261440000,-501.19961526,0.00010958,2]
[421874374,1778261440000,-500.0,0.00010958,2]
[421874376,1778261440000,-500.0,0.00010958,2]
[421874368,1778261440000,-640.91,0.00010958,2]
[421874377,1778261440000,-503.2306566,0.00010958,2]
[421874364,1778261440000,-521.45,0.00010958,2]
[421874369,1778261440000,-540.64,0.00010958,2]
[421874443,1778261441000,-500.0,0.00010958,2]
[421874440,1778261441000,-1324.78,0.00010958,2]
[421874445,1778261441000,-1362.2,0.00010958,2]
[421874450,1778261441000,-587.0,0.00011038,2]
[421874452,1778261441000,-300.0,0.00011176,2]
[421874454,1778261441000,-300.0,0.00011176,2]
[421874453,1778261441000,-300.0,0.00011176,2]
[421874451,1778261441000,-2351.0,0.00011038,2]
[421874455,1778261441000,-300.0,0.00011176,2]
[421874457,1778261441000,-300.0,0.00011176,2]
[421874444,1778261441000,-500.0,0.00010958,2]
[421874462,1778261441000,-300.0,0.00011176,2]
[421874460,1778261441000,-300.0,0.00011176,2]
[421874456,1778261441000,-300.0,0.00011176,2]
[421874459,1778261441000,-300.0,0.00011176,2]
[421874461,1778261441000,-300.0,0.00011176,2]
[421874441,1778261441000,-500.0,0.00010958,2]
[421874463,1778261441000,-300.0,0.00011176,2]
[421874472,1778261441000,-1267.6049,0.00011232,2]
[421874464,1778261441000,-300.0,0.00011176,2]
[421874465,1778261441000,-300.0,0.00011176,2]
[421874469,1778261441000,-374.010828,0.00011176,2]
[421874473,1778261441000,-281.84,0.00011232,2]
[421874468,1778261441000,-374.010828,0.00011176,2]
[421874458,1778261441000,-300.0,0.00011176,2]
[421874442,1778261441000,-502.95553008,0.00010958,2]
[421874434,1778261441000,-500.0,0.00010958,2]
[421874449,1778261441000,-213.47,0.00010959,2]
[421874474,1778261441000,-642.59,0.00011232,2]
[421874416,1778261441000,-559.41615194,0.00010958,2]
[421874424,1778261441000,-500.0,0.00010958,2]
[421874423,1778261441000,-500.0,0.00010958,2]
[421874422,1778261441000,-556.0,0.00010958,2]
[421874421,1778261441000,-500.0,0.00010958,2]
[421874425,1778261441000,-500.0,0.00010958,2]
[421874417,1778261441000,-500.0,0.00010958,2]
[421874418,1778261441000,-500.0,0.00010958,2]
[421874419,1778261441000,-2636.1,0.00010958,2]
[421874426,1778261441000,-500.0,0.00010958,2]
[421874420,1778261441000,-500.0,0.00010958,2]
[421874428,1778261441000,-500.0,0.00010958,2]
[421874429,1778261441000,-655.68,0.00010958,2]
[421874430,1778261441000,-500.0,0.00010958,2]
[421874436,1778261441000,-500.0,0.00010958,2]
[421874433,1778261441000,-1239.87,0.00010958,2]
[421874431,1778261441000,-500.0,0.00010958,2]
[421874432,1778261441000,-500.0,0.00010958,2]
[421874435,1778261441000,-868.17,0.00010958,2]
[421874438,1778261441000,-806.71,0.00010958,2]
[421874448,1778261441000,-222.2,0.00010959,2]
[421874437,1778261441000,-500.0,0.00010958,2]
[421874446,1778261441000,-531.6,0.00010958,2]
[421874447,1778261441000,-255.83,0.00010959,2]
[421874439,1778261441000,-500.0,0.00010958,2]
[421874427,1778261441000,-1469.69,0.00010958,2]
[421874475,1778261441000,-317.4,0.00011232,2]
[421874470,1778261441000,-374.010828,0.00011176,2]
[421874513,1778261441000,-500.0,0.00011232,2]
[421874502,1778261441000,-203.81,0.00011232,2]
[421874508,1778261441000,-508.24,0.00011232,2]
[421874507,1778261441000,-500.0,0.00011232,2]
[421874506,1778261441000,-500.0,0.00011232,2]
[421874511,1778261441000,-528.26,0.00011232,2]
[421874503,1778261441000,-500.0,0.00011232,2]
[421874505,1778261441000,-500.0,0.00011232,2]
[421874512,1778261441000,-774.07,0.00011232,2]
[421874509,1778261441000,-500.0,0.00011232,2]
[421874510,1778261441000,-556.4,0.00011232,2]
[421874516,1778261441000,-500.0,0.00011232,2]
[421874526,1778261441000,-2849.43,0.00011232,2]
[421874527,1778261441000,-500.0,0.00011232,2]
[421874515,1778261441000,-500.0,0.00011232,2]
[421874518,1778261441000,-500.0,0.00011232,2]
[421874517,1778261441000,-500.0,0.00011232,2]
[421874519,1778261441000,-500.0,0.00011232,2]
[421874520,1778261441000,-500.0,0.00011232,2]
[421874522,1778261441000,-1156.24,0.00011232,2]
[421874521,1778261441000,-226.95,0.00011232,2]
[421874524,1778261441000,-1042.7,0.00011232,2]
[421874523,1778261441000,-500.0,0.00011232,2]
[421874525,1778261441000,-500.0,0.00011232,2]
[421874467,1778261441000,-374.010828,0.00011176,2]
[421874504,1778261441000,-500.0,0.00011232,2]
[421874501,1778261441000,-500.0,0.00011232,2]
[421874514,1778261441000,-500.0,0.00011232,2]
[421874492,1778261441000,-500.0,0.00011232,2]
[421874466,1778261441000,-300.0,0.00011176,2]
[421874500,1778261441000,-500.0,0.00011232,2]
[421874471,1778261441000,-151.0,0.00011176,2]
[421874476,1778261441000,-199.06,0.00011232,2]
[421874484,1778261441000,-500.0,0.00011232,2]
[421874479,1778261441000,-500.0,0.00011232,2]
[421874478,1778261441000,-279.2,0.00011232,2]
[421874477,1778261441000,-426.29,0.00011232,2]
[421874481,1778261441000,-291.15,0.00011232,2]
[421874485,1778261441000,-485.07,0.00011232,2]
[421874482,1778261441000,-500.0,0.00011232,2]
[421874483,1778261441000,-500.0,0.00011232,2]
[421874486,1778261441000,-337.32,0.00011232,2]
[421874480,1778261441000,-500.0,0.00011232,2]
[421874495,1778261441000,-250.06,0.00011232,2]
[421874496,1778261441000,-500.0,0.00011232,2]
[421874488,1778261441000,-500.0,0.00011232,2]
[421874494,1778261441000,-500.0,0.00011232,2]
[421874493,1778261441000,-255.44,0.00011232,2]
[421874491,1778261441000,-500.0,0.00011232,2]
[421874499,1778261441000,-324.58,0.00011232,2]
[421874497,1778261441000,-500.0,0.00011232,2]
[421874490,1778261441000,-500.0,0.00011232,2]
[421874487,1778261441000,-381.73,0.00011232,2]
[421874489,1778261441000,-529.42,0.00011232,2]
[421874498,1778261441000,-500.0,0.00011232,2]
[421874568,1778261442000,-500.0,0.00011506,2]
[421874570,1778261442000,-500.0,0.00011506,2]
[421874572,1778261442000,-500.0,0.00011506,2]
[421874564,1778261442000,-563.19,0.00011506,2]
[421874565,1778261442000,-500.0,0.00011506,2]
[421874558,1778261442000,-967.0928,0.00011506,2]
[421874571,1778261442000,-500.0,0.00011506,2]
[421874562,1778261442000,-500.0,0.00011506,2]
[421874560,1778261442000,-500.0,0.00011506,2]
[421874561,1778261442000,-500.0,0.00011506,2]
[421874566,1778261442000,-160.65,0.00011506,2]
[421874563,1778261442000,-524.9,0.00011506,2]
[421874574,1778261442000,-187.93,0.00011506,2]
[421874579,1778261442000,-508.24,0.00011506,2]
[421874567,1778261442000,-500.0,0.00011506,2]
[421874573,1778261442000,-438.16,0.00011506,2]
[421874575,1778261442000,-500.0,0.00011506,2]
[421874577,1778261442000,-445.2,0.00011506,2]
[421874576,1778261442000,-500.0,0.00011506,2]
[421874578,1778261442000,-500.0,0.00011506,2]
[421874581,1778261442000,-528.26,0.00011506,2]
[421874584,1778261442000,-500.0,0.00011506,2]
[421874582,1778261442000,-774.07,0.00011506,2]
[421874583,1778261442000,-500.0,0.00011506,2]
[421874580,1778261442000,-158.05,0.00011506,2]
[421874557,1778261442000,-155.0,0.00011505,2]